Cogmind - Beta 15 @@@ ROGUE MODE // 2025.08.31 @ 11:07:50 Player: beans Result: Destroyed by G-50 Soldier with Heavy Laser Performance ------------- Evolutions (2) 1000 Regions Visited (3) 600 Robots Destroyed (66) 330 Value Destroyed (1488) 1488 Prototype IDs (2) 40 Alien Tech Used (0) 0 Bonus (0) 0 TOTAL SCORE: 3458 Bonus ------- None Cogmind --------- Core Integrity 0/550 Matter 242/300 Energy 66/100 System Corruption 0% Temperature Cool (18) Movement Core (150) Ox2 Location -8/Materials Parts ------- > --- POWER (1) -------- (None) > --- PROPULSION (2) --- (None) > --- UTILITY (6) ------ Targeting Computer Improved Targeting Computer > --- WEAPON (2) ------- Improved Light Cannon Improved Light Cannon > --- INVENTORY (5) ---- System Shield Peak State ------------ > --- POWER ------------ Heavy Ion Engine > --- PROPULSION ------- Light Treads Light Treads > --- UTILITY ---------- Heat Sink Targeting Computer Targeting Computer Targeting Computer Improved Targeting Computer Hacking Suite > --- WEAPON ----------- Field Laser Field Laser > --- INVENTORY -------- Field Laser Field Laser Grenade Launcher [Rating: 20] Favorites ----------- Power Heavy Ion Engine Engine Heavy Ion Engine Propulsion Light Treads Treads Light Treads Utility Targeting Computer Device Heat Sink Processor Targeting Computer Hackware Hacking Suite Weapon Assault Rifle Energy Gun Field Laser Ballistic Gun Assault Rifle Ballistic Cannon Light Cannon Launcher Grenade Launcher Build | -11 -10 -9 -8 ------- Run | Yrd Mat Mat Mat Slots Evolved 4 | . . 2 2 Power . | . . . . Propulsion . | . . . . Utility 4 | . . 2 2 Weapon . | . . . . Parts Attached 27 | 5 3 12 7 Power 2 | 1 . 1 . Engine 2 | 1 . 1 . Core . | . . . . Reactor . | . . . . Propulsion 4 | 2 . 2 . Treads 4 | 2 . 2 . Leg . | . . . . Wheel . | . . . . Hover . | . . . . Flight . | . . . . Utility 7 | . 2 3 2 Device 1 | . . . 1 Storage . | . . . . Processor 5 | . 2 3 . Hackware 1 | . . . 1 Protection . | . . . . Artifact . | . . . . Weapon 14 | 2 1 6 5 Energy Gun 4 | . . 2 2 Energy Cannon . | . . . . Ballistic Gun 6 | 2 . 3 1 Ballistic Cannon 3 | . . 1 2 Launcher 1 | . 1 . . Special Weapon . | . . . . Impact Weapon . | . . . . Slashing Weapon . | . . . . Piercing Weapon . | . . . . Special Melee Weapon . | . . . . Unidentified Prototypes 2 | . . 2 . Parts Lost 20 | . 1 6 13 Power 2 | . 1 . 1 Propulsion 4 | . . 2 2 Utility 4 | . . . 4 Weapon 10 | . . 4 6 Highest Loss Streak 11 | . 1 2 11 To Critical Strikes . | . . . . Average Backups 2 | . 1 4 2 Power . | . . . . Propulsion . | . . . . Utility . | . . . . Weapon 2 | . 1 3 2 Tool/Special . | . . . . Unused Backups 3 | . . 2 1 Power . | . . . . Propulsion . | . . . . Utility 2 | . . 1 1 Weapon 1 | . . 1 . Tool/Special . | . . . . Average Slot Usage (%) 80 | . 66 87 85 Engine 6 | . 7 4 8 Treads 17 | . 28 16 9 Device 2 | . . . 8 Processor 29 | . 1 43 34 Hackware 1 | . . . 6 Energy Gun 6 | . . 3 17 Ballistic Gun 12 | . 22 14 . Launcher 2 | . 5 2 . Peak Build Rating 20 | 5 6 17 20 Average Rating 10 | 3 4 10 17 On Entrance 7 | . 5 6 17 Naked Turns . | . . . . Heaviest Build 15 | 7 7 14 15 Greatest Support 40 | 40 40 40 40 Greatest Overweight (x) 4 | . . 1 4 Average Overweight (x) . | . . . . Largest Inventory Capacity 5 | 5 5 5 5 Average Capacity 5 | 5 5 5 5 Most Carried 5 | 2 5 5 4 Average Carried 2 | . 1 4 2 Final Capacity 5 | 5 5 5 5 Final Carried 5 | . 5 5 1 Class Distribution -------------------- 90% | Mutant 9% | Scavenger-Mutant Dominant Class ---------------- Mutant | -10/Materials Mutant | -9/Materials Mutant | -8/Materials Resources | -11 -10 -9 -8 ----------- Run | Yrd Mat Mat Mat Matter Collected 1125 | 207 300 583 35 Remotely . | . . . . Salvage Created 2158 | 17 366 1120 655 Parts 141 | 3 30 75 33 Haulers Intercepted 5 | . 1 4 . Recyclers Shooed 5 | 1 3 1 . Parts Field Recycled . | . . . . Retrieved Matter . | . . . . Parts Self-Destructed . | . . . . Prevented . | . . . . Kills | -11 -10 -9 -8 ------- Run | Yrd Mat Mat Mat Combat Hostiles Destroyed 38 | . 6 18 14 Guns 23 | . 4 8 11 Cannons 5 | . . 5 . AOE 9 | . 2 5 2 Classes Destroyed 11 | 1 7 2 1 Worker 5 | . 1 2 2 Builder 5 | . 2 2 1 Tunneler 1 | 1 . . . Hauler 5 | . 1 4 . Recycler 6 | . 2 3 1 Operator 2 | . . 2 . Watcher 4 | . 2 2 . Swarmer 11 | . 3 4 4 Grunt 17 | . 3 9 5 Sentry 8 | . . 5 3 Specialist 2 | . . . 2 Best Kill Streak 8 | 1 6 8 4 Combat Bots Only 7 | . 3 7 4 Max Kills in Single Turn 2 | 1 2 2 2 Gunslinging 1 | . . . 1 Exploded 2 | . 1 2 1 Melee . | . . . . Uniques/NPCs Destroyed . | . . . . Combat | -11 -10 -9 -8 -------- Run | Yrd Mat Mat Mat Hostile Shots Fired 261 | . 28 82 151 Missed 83 | . 9 18 56 Hits 178 | . 19 64 95 Projectile 178 | . 19 64 95 Critical Strikes 8 | . 1 1 6 Damage Taken 2359 | . 275 807 1277 Core 778 | . 57 166 555 Absorbed by Shields . | . . . . Core Remaining (%) 78 | 100 77 58 . Volleys Fired 147 | 2 36 62 47 Largest 2 | 2 2 2 2 Hottest 126 | 40 40 126 126 Shots Fired 262 | 4 61 110 87 Gun 220 | 4 50 84 82 Cannon 15 | . . 13 2 Launcher 27 | . 11 13 3 Special . | . . . . Kinetic 141 | 4 50 85 2 Thermal 94 | . . 12 82 Explosive 27 | . 11 13 3 Electromagnetic . | . . . . Robot Hit Streak 29 | 3 7 29 19 Robot Miss Streak 4 | . 4 3 4 Penetration Max . | . . . . Secondary Targets 6 | . . 2 4 Max Gunslinging Chain 1 | . . 1 1 Shots Hit Robots 175 | 3 34 78 60 Core Hits 103 | 1 20 49 33 Critical Kills . | . . . . Critical Parts Destroyed . | . . . . Critical Strikes 7 | . . 2 5 Burn 5 | . . . 5 Blast 2 | . . 2 . Melee Attacks . | . . . . Impact . | . . . . Slashing . | . . . . Piercing . | . . . . Sneak Attacks . | . . . . Combat Hostiles . | . . . . Follow-up Attacks . | . . . . Damage Inflicted 4301 | 40 1101 1849 1311 Guns 2287 | 40 377 900 970 Cannons 225 | . . 187 38 Explosions 1789 | . 724 762 303 Melee . | . . . . Ramming . | . . . . Kinetic 1442 | 40 377 987 38 Thermal 1070 | . . 100 970 Explosive 1789 | . 724 762 303 Electromagnetic . | . . . . Impact . | . . . . Slashing . | . . . . Piercing . | . . . . Highest Corruption . | . . . . Average Corruption . | . . . . Corruption Purged . | . . . . Corruption Blocked . | . . . . Overload Shots . | . . . . Overflow Damage 96 | . 66 21 9 Projectiles . | . . . . Explosions 96 | . 66 21 9 Melee . | . . . . Knockbacks . | . . . . Impact . | . . . . Kinetic . | . . . . Secondary . | . . . . Self-Inflicted Damage 103 | . 76 . 27 Shots 5 | . 4 . 1 Rammed . | . . . . Targets Rammed . | . . . . Kicked . | . . . . Crushed . | . . . . Highest Temperature 238 | . 2 238 179 Average Temperature 55 | . 2 83 49 Received Heat Transfer 867 | . 72 300 495 Siege Activations . | . . . . Martial Activations . | . . . . Shielding Activations . | . . . . Robots Disrupted . | . . . . Combat Hostiles . | . . . . Robots Corrupted . | . . . . Combat Hostiles . | . . . . Parts Fried . | . . . . Impact Corruptions . | . . . . Robots Melted 1 | . . . 1 Combat Hostiles 1 | . . . 1 Parts Melted 5 | . . 1 4 Heat Transferred 2701 | . . 222 2479 Parts Sabotaged . | . . . . Parts Stolen . | . . . . Parts Stripped . | . . . . Power Chain Reactions . | . . . . Alert | -11 -10 -9 -8 ------- Run | Yrd Mat Mat Mat Maximum Alert Level 1 | . . 1 1 Low Security (%) 64 | 100 100 30 75 Level 1 35 | . . 69 24 Level 2 . | . . . . Level 3 . | . . . . Level 4 . | . . . . Level 5 . | . . . . High Security . | . . . . Max Security . | . . . . Peak Influence 368 | 5 154 368 225 Initial 137 | . . 50 137 Average 158 | . 56 245 155 Influence Increases 1309 | 5 288 629 387 Destroy 0b10 Robot/C 760 | . 120 360 280 Destroy 0b10 Robot/NC 140 | 5 40 75 20 Destroy Leader 208 | . 36 112 60 Disable Machine 45 | . 15 30 . Destroy Structure 141 | . 77 52 12 Lose Combat Pursuer 15 | . . . 15 Influence Decreases 1129 | 5 168 424 532 Entered New Map 258 | . . 70 188 Time Decay 681 | 5 168 294 214 Lost Part 190 | . . 60 130 Squads Dispatched 6 | . 1 1 4 Investigation . | . . . . Extermination . | . . . . Reinforcement 5 | . 1 1 3 Assault . | . . . . Garrison 1 | . . . 1 Intercept . | . . . . Searches Triggered . | . . . . Construction Impeded 1 | . . . 1 Haulers Reinforced . | . . . . Active Scanning Responses . | . . . . Cargo Convoy Interrupts . | . . . . Stealth | -11 -10 -9 -8 --------- Run | Yrd Mat Mat Mat Distress Signals 4 | . 2 1 1 Communications Jammed . | . . . . Distress Signals . | . . . . Times Spotted 60 | . 11 23 26 Peak Tracking Total 9 | . 3 4 9 Tactical Retreats 1 | . . . 1 Traps | -11 -10 -9 -8 ------- Run | Yrd Mat Mat Mat Traps Triggered . | . . . . Indirectly . | . . . . Trap Hack Attempts . | . . . . Triggered . | . . . . Disarmed . | . . . . Reprogrammed . | . . . . Reused . | . . . . Traps Extracted . | . . . . Installed . | . . . . Triggered . | . . . . Machines | -11 -10 -9 -8 ---------- Run | Yrd Mat Mat Mat Machines Disabled 3 | . 1 2 . Max in Single Turn 2 | . 1 2 . Machines Repaired . | . . . . Machines Dismantled . | . . . . Machines Sabotaged . | . . . . Overloaded Fab Kills . | . . . . Hacking | -11 -10 -9 -8 --------- Run | Yrd Mat Mat Mat Machines Accessed . | . . . . Terminals . | . . . . Fabricators . | . . . . Repair Stations . | . . . . Recycling Units . | . . . . Scanalyzers . | . . . . Garrison Access . | . . . . Total Hacks . | . . . . Successful . | . . . . Failed . | . . . . Catastrophic . | . . . . Database Lockouts . | . . . . Manual 3 | . 3 . . Terminals . | . . . . Fabricators . | . . . . Repair Stations . | . . . . Recycling Units . | . . . . Scanalyzers . | . . . . Garrison Access . | . . . . Terminal Hacks . | . . . . Fabricator Hacks . | . . . . Repair Station Hacks . | . . . . Recycling Unit Hacks . | . . . . Scanalyzer . | . . . . Garrison Access Hacks . | . . . . Unauthorized Hacks . | . . . . Terminals . | . . . . Fabricators . | . . . . Repair Stations . | . . . . Recycling Units . | . . . . Scanalyzers . | . . . . Garrison Access . | . . . . Data Cores Recovered . | . . . . Used . | . . . . Hacking Detections 1 | . 1 . . Full Trace Events . | . . . . Feedback Events . | . . . . Feedback Blocked . | . . . . Robot Schematics Acquired . | . . . . Robots Built . | . . . . Authchips . | . . . . Time . | . . . . Total Robot Build Rating . | . . . . Part Schematics Acquired . | . . . . Parts Built . | . . . . Authchips . | . . . . Time . | . . . . Total Part Build Rating . | . . . . Parts Repaired . | . . . . Time . | . . . . Parts Recycled . | . . . . Recycled Matter . | . . . . Retrieved Matter . | . . . . Retrieved Components . | . . . . Parts Scanalyzed . | . . . . Part Schematics Acquired . | . . . . Parts Damaged . | . . . . Bothacking | -11 -10 -9 -8 ------------ Run | Yrd Mat Mat Mat Used RIF Installer . | . . . . Robots Hacked . | . . . . Non-combat . | . . . . Combat . | . . . . Robot Hacks Applied . | . . . . Relay Couplers Released . | . . . . Fabnet Peak Effective % . | . . . . Robots Rewired . | . . . . Allies Hacked . | . . . . Hacks Repelled . | . . . . Allies | -11 -10 -9 -8 -------- Run | Yrd Mat Mat Mat Total Allies . | . . . . Largest Group . | . . . . Highest-Rated Group . | . . . . Highest-Rated Ally . | . . . . Total Orders . | . . . . Ally Attacks . | . . . . Total Damage . | . . . . Kills . | . . . . Allies Corrupted . | . . . . Allies Melted . | . . . . Intel | -11 -10 -9 -8 ------- Run | Yrd Mat Mat Mat Active Infowar (turns) . | . . . . Robot Analysis Total . | . . . . Derelict Logs Recovered . | . . . . Drone Launches . | . . . . Drone Recoveries . | . . . . Exploration | -11 -10 -9 -8 ------------- Run | Yrd Mat Mat Mat Turns Passed 1599 | 90 411 653 445 Spaces Moved 741 | 46 190 316 189 Core 121 | 10 . 94 17 Treads 620 | 36 190 222 172 Legs . | . . . . Wheels . | . . . . Hover . | . . . . Flight . | . . . . Fastest Speed 50 | 50 160 50 50 Average Speed 148 | 136 160 138 158 Slowest Speed 250 | 160 160 160 250 Overloaded Moves . | . . . . Propulsion Burnouts . | . . . . Robots Hopped . | . . . . Potential Cave-ins . | . . . . Cave-ins Triggered . | . . . . Exploration Rate (%) 27 | 4 45 36 25 Regions Visited 3 Branch Regions . Pre-discovered Areas . | . . . . Known Exits Taken . | . . . . Unknown Exits Taken 3 | 1 1 1 . Scrap Searched . | . . . . Spaces Dug 7 | . . 7 . Terrain Destroyed 160 | . 80 71 9 Melee . | . . . . Projectile . | . . . . AOE 160 | . 80 71 9 Terrain Rammed . | . . . . Walls Destroyed . | . . . . Machines Disabled . | . . . . Actions | -11 -10 -9 -8 --------- Run | Yrd Mat Mat Mat Total 973 | 70 236 417 250 Wait 24 | 13 1 8 2 Move 738 | 45 189 315 189 Hop . | . . . . Pick Up 26 | 5 7 10 4 Fast Attach 4 | . . 4 . Attach 20 | 5 2 5 8 Detach . | . . . . Swap 9 | . 1 8 . Drop 5 | . . 5 . Fire 147 | 2 36 62 47 Melee . | . . . . Ram . | . . . . Kick . | . . . . Crush . | . . . . Escape Stasis . | . . . . Rewire . | . . . . Trap . | . . . . Miscellaneous . | . . . . Route ------- -11/Scrapyard -10/Materials -9/Materials -8/Materials History --------- Turn | Location | Event 4 | -11/Scrapyard | Discovered new exit (range 16) 91 | -11/Scrapyard | Entered Materials 301 | -10/Materials | Build established: Mutant 408 | -10/Materials | Discovered new exit (range 16) 502 | -10/Materials | Entered another Materials area 502 | -9/Materials | Evolved 2 slots: Utility x2 726 | -9/Materials | Destroyed 7 combat bots 1145 | -9/Materials | Discovered new exit (range 7) 1155 | -9/Materials | Entered another Materials area 1155 | -8/Materials | Evolved 2 slots: Utility x2 1570 | -8/Materials | Garrison activated, responded to threat 1591 | -8/Materials | Core integrity fell below 50% 1598 | -8/Materials | Core integrity fell below 20% 1600 | -8/Materials | Destroyed by G-50 Soldier with Heavy Laser Last Messages --------------- C-30 ARC bursts open, deploying its payload. S-10 Pest unfolds itself. R-06 Scavenger collects Sml. Storage Unit. R-06 Scavenger suffers critical hit (Destroy). Grenade Launcher destroyed. Destroyed Grenade Launcher. ALERT: Construction progress impeded, dispatching reinforcements to local area. U-05 Engineer lays Concrete. Critical hit (Burn: +37). U-05 Engineer lays Concrete. Acquired Imp. Light Cannon. K-01 Serf collects debris. W-25 Informer suffers critical hit (Burn). Targeting Computer destroyed. U-05 Engineer lays Concrete. Acquired Imp. Light Cannon. U-05 Engineer lays Concrete. K-01 Serf collects debris. U-05 Engineer lays Concrete. Map ----- +----------------------------------------------------+ | ?????????????????????????????????????????? | | ?????????????????????????????????????????? | | ?????????????????????????????????????????? | | ?????????????????????????????????????????? | | ?????????????????????????????????????????? | | ?????????????????????????????????????????? | | ?????????????????????????????????????????? | | ?????????????????????????????????????????? | | ?????????????????????????????????????????? | | ?????????????????????????????????????????? | | ?????????????????????????????????????????? | | ?????????????????????????????????????????? | | ?????????????????????##+###??????????????? | | ????????????????????# #??????????????? | | ????????????????????# #??????????????? | | ????????????????????# #??????????????? | | ????????????????????# #??????????????? | | ?????????##?????????+ #######????????? | | ????????? ?????????# #????????? | | ?????????# #????????# / #????????? | | ?????????# #????????# """ ###??????? | | ?????????# #???????## "T" % +??????? | | ???????### ###?##### %=== #??????? | | ???????# "### % [% #??????? | | ???????# % s s % g]] k #??????? | | ???????# " %u s @]]Yu +??????? | | ???????# s m = ]]Y #??????? | | ???????# ### w ##+####??????? | | ???????### ###?##### # #???????? | | ?????????# #???############# #???????? | | ?????????# #?? ???????""" #???????? | | ?????????# #?? ????????"" #???????? | | ###+###### ## ??????????" #???????? | | # """ ???????????????????? | | + """ =] ???????????????????? | | # """ =] ???????????????????? | | ######### # =] ????????????????????? | | #??????# #? ???????????????????? | | "#??????# #?########???????????????????? | | "#??????# #????????????????????????????? | | "#??????# #????????????????????????????? | | ######## #????????????????????????????? | | / %**! %*#????????????????????????????? | | #########"##????????????????????????????? | | #?# = ?????????????????????????????? | | ##?# ?????????????????????????????? | | #??# """ """?????????????????????????????? | | #### """ """ "???????????????????????????? | | # """=""" """?????????????????????????? | | # %*% #???????????????????????? | +----------------------------------------------------+ Best States ------------- Heat Dissipation 41 Energy Generation 14 Energy Capacity 280 Matter Stores 300 Matter Capacity 300 Sight Range 16 Terrain Scan Density 10 Evasion (%) 50 Targeting Accuracy 21 Recoil Reduction 2 Offensive Hacking 10 Item Schematics ----------------- None Robot Schematics ------------------ None Fabricated ------------ Nothing Repaired ---------- Nothing Alien Tech Used ----------------- None Achievements -------------- None Challenges ------------ None Game ------ Seed HeatGuidedReactor Manual? 0 Play Time 00:12:43 Cumulative 117.6 hours Start 2025.08.31 @ 10:57:54 End 2025.08.31 @ 11:07:50 Sessions 1 Manual Loads 0 Difficulty Rogue Special Mode None Game No. 426 Rogue 426 Adventurer 0 Explorer 0 Win Type - Total 0 Types 0/0/0/0/0/0/0/0/0/0 Lore% 46 Gallery% 44 Achievement% 31 Wizard Run 0 Options --------- Layout 2 ASCII 0 Keyboard 0 Movement Mouse Keybinds 0 Fullscreen 2 Font 24/Smallcaps Map View 50x44 Zoom Use 0% Tactical HUD 0 Map Filters NONE Filters NONE Steam 1 RUN: 6141e338-fa14-4a75-9bdd-04b5b1e10145